bitfinex/quotes_SOLUSD_20220227
["timestamp","ask_amount","ask_price","bid_price","bid_amount"]
[1645946108691,60.71790723,88.907,88.846,112.7]
[1645946108892,60.71790723,88.907,88.847,4.5]
[1645946109090,22.9734,88.936,88.848,112.7]
[1645946109291,22.9734,88.936,88.85,112.7]
[1645946109492,22.9734,88.936,88.852,112.7]
[1645946109691,22.9734,88.936,88.854,112.7]
[1645946109892,24.7784,88.951,88.855,4.499]
[1645946110090,24.7784,88.951,88.871,112.7]
[1645946110091,49.26867698,88.95,88.871,112.7]
[1645946110291,49.26867698,88.95,88.874,2.70790854]
[1645946110491,49.26867698,88.95,88.875,4.498]
[1645946110892,49.26867698,88.95,88.882,2.27977709]
[1645946111497,49.26867698,88.95,88.884,112.7]
[1645946111694,49.26867698,88.95,88.885,2.53138269]
[1645946113295,48.85486113,88.949,88.885,2.53138269]
[1645946113998,24.4403,88.949,88.885,2.53138269]
[1645946114996,1.67076802,88.948,88.883,24.4905]
[1645946115296,1.67076802,88.948,88.862,2.65500506]
[1645946115499,1.64632514,88.946,88.864,2.67188214]
[1645946115896,52.0328384,88.945,88.864,2.67188214]
[1645946116096,1.39194206,88.944,88.864,2.67188214]
[1645946116296,1.46489265,88.943,88.864,2.67188214]
[1645946116598,4.499,88.942,88.864,2.67188214]
[1645946116895,55.98052497,88.942,88.864,2.67188214]
[1645946117095,4.33059207,88.941,88.864,2.67188214]
[1645946117295,6.29901755,88.94,88.864,2.67188214]
[1645946117496,23.5513,88.939,88.864,2.67188214]
[1645946117696,1.36859684,88.938,88.864,2.67188214]
[1645946118097,26.2644662,88.937,88.864,2.67188214]
[1645946118301,54.97621483,88.935,88.861,4.498]
[1645946118500,1.58770823,88.934,88.861,4.498]
[1645946118701,26.45919629,88.934,88.861,4.498]
[1645946119000,26.67801824,88.933,88.861,4.498]
[1645946119202,1.52156722,88.932,88.861,4.498]
[1645946119400,25.93612835,88.932,88.861,4.498]
[1645946119803,27.16135034,88.931,88.861,4.498]
[1645946120201,52.0328384,88.93,88.861,4.498]
[1645946120402,24.5049,88.929,88.861,4.498]
[1645946120601,76.5377384,88.929,88.861,4.498]
[1645946120800,73.79094919,88.929,88.861,4.498]
[1645946121003,27.16135034,88.928,88.861,4.498]
[1645946121402,2.74678921,88.927,88.861,4.498]
[1645946121805,24.41456113,88.928,88.861,4.498]
[1645946122601,24.41456113,88.928,88.851,2.38408711]
[1645946123403,24.5049,88.929,88.851,2.38408711]
[1645946126107,24.41456113,88.928,88.851,2.38408711]
[1645946127011,49.28604919,88.928,88.851,2.38408711]
[1645946128813,53.78504919,88.928,88.851,2.38408711]
[1645946129314,24.41456113,88.927,88.851,2.38408711]
[1645946129716,26.6309105,88.926,88.851,2.38408711]
[1645946129915,6.1209923,88.925,88.824,2.34792238]
[1645946130113,16.2,88.92,88.824,2.34792238]
[1645946130317,43.92868603,88.918,88.824,2.34792238]
[1645946130529,4.5,88.917,88.824,2.34792238]
[1645946130732,29.0096,88.917,88.824,2.34792238]
[1645946130933,7.0,88.906,88.824,2.34792238]
[1645946131132,24.5096,88.905,88.824,2.34792238]
[1645946131433,54.58064883,88.904,88.824,2.34792238]
[1645946131632,78.99520996,88.904,88.824,2.34792238]
[1645946131830,113.61348723,88.904,88.824,2.34792238]
[1645946132033,52.0328384,88.903,88.824,2.34792238]
[1645946132432,1.6534289,88.901,88.824,2.34792238]
[1645946132632,4.501,88.9,88.824,2.34792238]
[1645946132832,1.43988515,88.899,88.774,2.29634045]
[1645946133031,4.502,88.898,88.776,3.05584041]
[1645946133233,7.0,88.891,88.776,3.05584041]
[1645946133532,55.54699238,88.889,88.776,3.05584041]
[1645946133735,4.502,88.888,88.78,16.2]
[1645946133932,7.24878921,88.888,88.781,2.8511723]
[1645946134132,31.66335034,88.888,88.782,112.7]
[1645946134332,2.74678921,88.887,88.783,3.05878584]
[1645946134534,4.502,88.886,88.783,34.78347644]
[1645946134733,4.502,88.886,88.784,2.36046572]
[1645946134932,2.74678921,88.885,88.786,112.7]
[1645946135135,2.74678921,88.885,88.787,2.51805366]
[1645946135432,2.74678921,88.885,88.789,2.46906274]
[1645946137039,4.502,88.884,88.789,2.46906274]
[1645946137433,27.06696384,88.883,88.789,2.46906274]
[1645946137637,1.59851136,88.882,88.789,2.46906274]
[1645946137834,1.36528314,88.879,88.789,2.46906274]
[1645946138041,4.502,88.878,88.789,2.46906274]
[1645946138245,4.502,88.878,88.75,16.2]
[1645946138246,44.8659955,88.878,88.776,2.89399312]
[1645946138440,7.0,88.871,88.752,2.97604424]
[1645946138639,43.04127434,88.869,88.752,2.97604424]
[1645946138841,6.17075924,88.868,88.752,2.97604424]
[1645946139041,30.5766537,88.868,88.753,31.73139021]
[1645946139247,3.74594932,88.867,88.754,2.8510388]
[1645946139446,16.8999,88.86,88.754,2.8510388]
[1645946139648,1.67314372,88.859,88.754,2.8510388]
[1645946139850,1.6719492,88.858,88.755,31.73139021]
[1645946140047,1.6719492,88.858,88.756,3.08815718]
[1645946140249,4.41873841,88.858,88.756,3.08815718]
[1645946140453,2.19547578,88.857,88.756,3.08815718]
[1645946140654,2.19547578,88.857,88.757,31.73139021]
[1645946140850,2.19547578,88.857,88.758,3.06422182]
[1645946141453,2.19547578,88.857,88.759,31.73139021]
[1645946141651,2.19547578,88.857,88.76,3.00110821]
[1645946141855,46.92021974,88.855,88.76,3.00110821]
[1645946142052,1.7549681,88.854,88.76,3.00110821]
[1645946142256,4.50175731,88.854,88.76,3.00110821]
[1645946142452,2.74678921,88.853,88.752,115.55427836]
[1645946142651,2.74678921,88.853,88.753,2.68817774]
[1645946143054,46.92021974,88.855,88.754,31.73242647]
[1645946143254,46.92021974,88.855,88.755,2.94569548]
[1645946143855,63.82961974,88.855,88.756,31.73242647]
[1645946144054,63.82961974,88.855,88.757,2.76167295]
[1645946144757,63.82961974,88.855,88.754,2.74678921]
[1645946145254,63.82961974,88.855,88.756,2.94993636]
[1645946145456,1.38038904,88.854,88.756,2.94993636]
[1645946145655,4.503,88.853,88.756,2.94993636]
[1645946145855,7.24978921,88.853,88.756,2.94993636]
[1645946146054,2.74678921,88.852,88.756,2.94993636]
[1645946153664,24.40589446,88.851,88.756,2.94993636]
[1645946154065,2.74678921,88.85,88.756,2.94993636]
[1645946154465,1.76574273,88.848,88.756,2.94993636]
[1645946154665,4.503,88.847,88.756,2.94993636]
[1645946154864,7.0,88.843,88.756,2.94993636]
[1645946155064,16.2,88.84,88.756,2.94993636]
[1645946155265,52.86413991,88.839,88.756,2.94993636]
[1645946155466,100.92433437,88.839,88.756,2.94993636]
[1645946155664,24.87148806,88.838,88.756,2.94993636]
[1645946155867,52.02417173,88.838,88.756,2.94993636]
[1645946156065,2.19547578,88.837,88.756,2.94993636]
[1645946162790,26.60137024,88.837,88.756,2.94993636]
[1645946163091,2.74678921,88.836,88.756,2.94993636]
[1645946163291,4.503,88.835,88.756,2.94993636]
[1645946163690,2.74678921,88.834,88.756,2.94993636]
[1645946163894,27.15268367,88.834,88.756,2.94993636]
[1645946164294,2.74678921,88.833,88.756,2.94993636]
[1645946171100,27.15268367,88.833,88.756,2.94993636]
[1645946171505,2.74678921,88.832,88.756,2.94993636]
[1645946173600,27.15268367,88.832,88.756,2.94993636]
[1645946174000,2.74678921,88.831,88.756,2.94993636]
[1645946174402,24.40589446,88.83,88.756,2.94993636]
[1645946174800,26.53348921,88.829,88.756,2.94993636]
[1645946176503,2.74678921,88.828,88.756,2.94993636]
[1645946177707,23.7867,88.829,88.756,2.94993636]
[1645946180808,24.40589446,88.846,88.757,4.503]
[1645946181208,22.883,88.859,88.76,16.2]
[1645946181411,31.40589446,88.864,88.761,7.1854346]
[1645946181611,7.0,88.864,88.762,137.6658]
[1645946181813,7.0,88.864,88.765,3.01240384]
[1645946182009,7.0,88.864,88.781,112.7]
[1645946182212,7.0,88.864,88.783,112.7]
[1645946182410,45.92908742,88.863,88.786,2.98449592]
[1645946182611,70.33498188,88.863,88.787,4.503]
[1645946185013,45.92908742,88.863,88.787,4.503]
[1645946185215,45.92908742,88.863,88.786,2.98449592]
[1645946185615,2.74678921,88.862,88.786,2.98449592]
[1645946186213,27.15268367,88.862,88.786,2.98449592]
[1645946186614,2.74678921,88.861,88.786,2.98449592]
[1645946187016,22.8314,88.86,88.786,2.98449592]
[1645946187413,2.19547578,88.859,88.786,2.98449592]
[1645946188615,24.40589446,88.858,88.786,2.98449592]
[1645946189015,2.74678921,88.857,88.786,2.98449592]
[1645946189416,24.40589446,88.856,88.786,2.98449592]
[1645946190016,2.74678921,88.855,88.786,2.98449592]
[1645946193619,22.8314,88.86,88.786,2.98449592]
[1645946195520,45.92908742,88.863,88.786,2.98449592]
[1645946195719,45.92908742,88.863,88.79,16.2]
[1645946195919,45.92908742,88.863,88.791,7.11124996]
[1645946196320,45.92908742,88.863,88.793,112.7]
[1645946196520,45.92908742,88.863,88.794,2.84412834]
[1645946203225,45.92908742,88.863,88.846,0.1233537]
[1645946210061,22.625,88.862,88.846,0.1233537]
[1645946217966,25.79256113,88.861,88.846,0.1233537]
[1645946219971,22.625,88.862,88.846,0.1233537]
[1645946221372,48.41756113,88.862,88.846,0.1233537]
[1645946221572,48.41756113,88.862,88.854,1.2213712]
[1645946221772,85.0,88.861,88.771,2.95210238]
[1645946222173,25.79256113,88.86,88.771,2.95210238]
[1645946222673,2.19547578,88.859,88.771,2.95210238]
[1645946222874,4.503,88.858,88.771,2.95210238]
[1645946223074,27.97088782,88.858,88.771,2.95210238]
[1645946223274,2.74678921,88.857,88.771,2.95210238]
[1645946223577,4.503,88.856,88.771,2.95210238]
[1645946223775,27.97088782,88.856,88.771,2.95210238]
[1645946223976,2.19547578,88.855,88.771,2.95210238]
[1645946224176,4.503,88.854,88.771,2.95210238]
[1645946224376,69.46225685,88.854,88.771,2.95210238]
[1645946224577,46.5724125,88.849,88.771,2.95210238]
[1645946224878,2.19547578,88.848,88.771,2.95210238]
[1645946225078,4.503,88.847,88.771,2.95210238]
[1645946225278,28.9726,88.847,88.771,2.95210238]
[1645946225579,50.26216113,88.847,88.771,2.95210238]
[1645946225777,25.79256113,88.846,88.771,2.95210238]
[1645946232280,23.46788782,88.845,88.771,2.95210238]
[1645946232682,16.2,88.84,88.741,4.503]
[1645946232881,27.6271,88.839,88.743,2.5049723]
[1645946233081,7.0,88.838,88.743,2.5049723]
[1645946233280,48.49136903,88.838,88.743,2.5049723]
[1645946233480,15.6988079,88.837,88.743,2.5049723]
[1645946233681,64.95925685,88.837,88.743,2.5049723]
[1645946233882,25.79256113,88.836,88.743,2.5049723]
[1645946234080,51.92797557,88.834,88.743,2.5049723]
[1645946234482,25.79256113,88.833,88.743,2.5049723]
[1645946236384,2.19547578,88.832,88.743,2.5049723]
[1645946236582,16.9068,88.83,88.743,2.5049723]
[1645946236787,4.503,88.829,88.743,2.5049723]
[1645946236983,45.99436903,88.829,88.743,2.5049723]
[1645946237184,24.9695727,88.828,88.743,2.5049723]
[1645946237385,4.503,88.827,88.743,2.5049723]
[1645946237585,20.2018079,88.827,88.743,2.5049723]
[1645946237784,15.6988079,88.826,88.743,2.5049723]
[1645946237985,4.503,88.825,88.743,2.5049723]
[1645946238285,48.18984481,88.825,88.743,2.5049723]
[1645946238485,27.52958921,88.824,88.743,2.5049723]
[1645946238685,4.503,88.823,88.743,2.5049723]
[1645946238891,2.19547578,88.823,88.743,2.5049723]
[1645946239085,25.79256113,88.823,88.743,2.5049723]
[1645946239286,28.53935034,88.822,88.743,2.5049723]
[1645946239687,25.79256113,88.821,88.743,2.5049723]
[1645946239886,43.6723029,88.82,88.743,2.5049723]
[1645946243992,69.46486403,88.82,88.743,2.5049723]
[1645946244198,86.37356403,88.82,88.743,2.5049723]
[1645946244395,4.503,88.819,88.743,2.5049723]
[1645946244794,25.79256113,88.818,88.743,2.5049723]
[1645946244994,4.503,88.817,88.743,2.5049723]
[1645946245393,25.79256113,88.816,88.743,2.5049723]
[1645946246493,23.46788782,88.815,88.743,2.5049723]
[1645946246712,4.502,88.814,88.743,2.5049723]
[1645946247111,22.5842,88.813,88.743,2.5049723]
[1645946248311,48.36809446,88.813,88.743,2.5049723]
[1645946251920,22.5842,88.813,88.743,2.5049723]
[1645946252315,22.5842,88.813,88.744,4.505]
[1645946252716,22.5842,88.813,88.744,2.5331142]
[1645946252916,22.5842,88.813,88.745,4.505]
[1645946254220,22.5842,88.813,88.744,2.5331142]
[1645946254422,22.5842,88.813,88.745,4.505]
[1645946255421,22.5842,88.813,88.75,16.2]
[1645946255721,22.5842,88.813,88.751,2.86014822]
[1645946256226,22.5842,88.813,88.753,3.03199255]
[1645946263032,22.5842,88.813,88.804,0.06189868]
[1645946266838,22.2842069,88.813,88.804,0.06189868]
[1645946269942,48.06472136,88.813,88.804,0.06189868]
[1645946273165,22.2842069,88.813,88.804,0.06189868]
[1645946280477,43.6723029,88.82,88.804,0.06189868]
[1645946287683,23.2666,88.819,88.804,0.06189868]
[1645946318843,40.0988,88.819,88.804,0.06189868]
[1645946324951,23.2666,88.819,88.804,0.06189868]
[1645946345696,25.18156113,88.844,88.804,0.06189868]
[1645946345906,7.0,88.861,88.804,0.06189868]
[1645946346105,23.3627,88.853,88.804,0.06189868]
[1645946346701,55.9604814,88.852,88.804,0.06189868]
[1645946349903,23.8445,88.87,88.804,0.06189868]
[1645946350903,49.00790388,88.869,88.804,0.06189868]
[1645946351725,25.18156113,88.877,88.804,0.06189868]
[1645946351935,25.18156113,88.89,88.804,0.06189868]
[1645946352131,25.18156113,88.89,88.805,2.74678921]
[1645946352330,7.0,88.904,88.821,112.7]
[1645946352528,7.0,88.904,88.823,112.7]
[1645946352730,7.0,88.904,88.824,2.31170026]
[1645946353132,47.15065771,88.903,88.825,138.28111644]
[1645946353332,7.0,88.904,88.825,138.28111644]
[1645946353333,7.0,88.904,88.841,112.7]
[1645946353533,24.5731,88.931,88.842,24.2938]
[1645946353831,24.5731,88.931,88.843,2.77422312]
[1645946354032,24.02030135,88.93,88.843,2.77422312]
[1645946354238,54.44740978,88.929,88.843,2.77422312]
[1645946354736,54.44740978,88.929,88.843,2.8361218]
[1645946354737,26.76709056,88.928,88.843,2.8361218]
[1645946354938,26.76709056,88.928,88.843,0.06189868]
[1645946354939,117.2,88.927,88.843,0.06189868]
[1645946355140,1.41541221,88.926,88.843,0.06189868]
[1645946355338,4.5,88.925,88.843,0.06189868]
[1645946355538,60.02348402,88.909,88.843,0.06189868]
[1645946355740,7.0,88.904,88.843,0.06189868]
[1645946355936,16.2,88.9,88.843,0.06189868]
[1645946356137,4.5,88.899,88.843,0.06189868]
[1645946356336,27.5765,88.899,88.843,0.06189868]
[1645946356735,23.27489446,88.898,88.843,0.06189868]
[1645946356938,29.0422,88.897,88.843,0.06189868]
[1645946357739,23.27489446,88.896,88.843,0.06189868]
[1645946357939,54.69771824,88.895,88.843,0.06189868]
[1645946358345,50.19771824,88.895,88.843,0.06189868]
[1645946361742,50.19771824,88.895,88.886,0.06189868]
[1645946366146,4.499,88.894,88.886,0.06189868]
[1645946367545,50.19771824,88.895,88.886,0.06189868]
[1645946370553,71.62498189,88.895,88.886,0.06189868]
[1645946372350,50.19771824,88.895,88.886,0.06189868]
[1645946375056,56.31,88.958,88.887,80.06804534]
[1645946375257,5.81,88.976,88.887,80.06804534]
[1645946375258,49.2616,88.969,88.888,3.02501792]
[1645946375457,16.5911,88.988,88.889,2.25528184]
[1645946375458,7.0,88.976,88.889,2.25528184]
[1645946376158,48.92361648,88.975,88.889,2.25528184]
[1645946378672,48.92361648,88.975,88.889,114.95528184]
[1645946378872,48.92361648,88.975,88.89,2.54060978]
[1645946379076,48.92361648,88.975,88.892,2.86578959]
[1645946383574,4.497,88.989,88.893,2.74678921]
[1645946383775,31.0182,89.006,88.893,30.50583879]
[1645946383977,24.0182,89.006,88.895,2.57165404]
[1645946384376,24.0182,89.006,88.897,112.7]
[1645946384577,60.69419853,89.005,88.912,2.51087185]
[1645946384977,60.69419853,89.005,88.91,16.2]
[1645946384978,60.69419853,89.005,88.915,2.77782208]
[1645946385176,60.69419853,89.005,88.921,112.7]
[1645946385375,60.69419853,89.005,88.921,3.07525346]
[1645946385376,63.44098774,89.005,88.921,3.07525346]
[1645946385576,63.44098774,89.005,88.922,2.93906418]
[1645946386175,63.44098774,89.005,88.923,2.74678921]
[1645946387279,63.44098774,89.005,88.966,0.06189868]
[1645946387677,60.69419853,89.005,88.966,0.06189868]
[1645946417914,24.6905,89.004,88.966,0.06189868]
[1645946420239,24.7014,89.03,88.966,0.06189868]
[1645946421341,58.12767041,89.029,88.966,0.06189868]
[1645946431454,4.494,89.028,88.966,0.06189868]
[1645946431751,27.3037,89.028,88.966,0.06189868]
[1645946433857,22.8097,89.028,88.966,0.06189868]
[1645946434359,22.8097,89.028,89.02,0.06189868]
[1645946441660,4.493,89.05,89.02,0.06189868]
[1645946441860,28.4795,89.05,89.02,0.06189868]
[1645946442060,23.9865,89.05,89.02,0.06189868]
[1645946442661,56.26632158,89.049,89.02,0.06189868]
[1645946447261,23.9865,89.05,89.02,0.06189868]
[1645946447461,4.492,89.068,89.02,0.06189868]
[1645946447661,24.1862,89.089,89.02,0.06189868]
[1645946447866,7.0,89.089,89.02,0.06189868]
[1645946448063,24.3456,89.119,89.021,119.93778921]
[1645946448263,2.74678921,89.138,89.021,119.93778921]
[1645946448264,46.25854419,89.118,89.022,2.42336919]
[1645946448464,7.0,89.131,89.031,112.7]
[1645946448665,2.74678921,89.147,89.041,112.7]
[1645946448865,7.0,89.146,89.051,112.7]
[1645946449065,7.0,89.146,89.05,16.2]
[1645946449066,7.0,89.146,89.053,112.7]
[1645946449269,7.0,89.146,89.054,3.02181075]
[1645946449464,42.70832063,89.145,89.055,4.489]
[1645946449666,42.70832063,89.145,89.057,112.7]
[1645946449865,42.70832063,89.145,89.059,112.7]
[1645946450064,42.70832063,89.145,89.061,112.7]
[1645946450267,42.70832063,89.145,89.063,112.7]
[1645946450465,42.70832063,89.145,89.065,112.7]
[1645946450666,42.70832063,89.145,89.067,112.7]
[1645946450866,42.70832063,89.145,89.068,7.53329279]
[1645946451365,42.70832063,89.145,89.068,3.04429279]
[1645946451567,42.70832063,89.145,89.062,2.57727786]
[1645946452165,42.70832063,89.145,89.063,4.489]
[1645946452566,42.70832063,89.145,89.064,112.7]
[1645946452767,42.70832063,89.145,89.066,112.7]
[1645946452988,42.70832063,89.145,89.067,120.16385645]
[1645946453165,42.70832063,89.145,89.068,2.71738536]
[1645946453565,42.70832063,89.145,89.069,4.489]
[1645946453767,42.70832063,89.145,89.069,115.4199552]
[1645946453966,42.70832063,89.145,89.07,3.06782995]
[1645946454166,42.70832063,89.145,89.071,4.488]
[1645946455067,42.70832063,89.145,89.07,3.06782995]
[1645946455068,2.74678921,89.144,89.07,3.06782995]
[1645946455268,4.488,89.143,89.062,2.39335381]
[1645946455670,2.74678921,89.142,89.062,2.39335381]
[1645946455869,4.489,89.141,89.062,2.39335381]
[1645946456271,2.74678921,89.14,89.137,0.06189868]
[1645946456470,4.487,89.139,89.137,0.06189868]
[1645946456870,2.74678921,89.138,89.137,0.06189868]
[1645946457070,2.74678921,89.138,89.137,0.00189868]
[1645946457268,7.23378921,89.138,89.137,0.00189868]
[1645946457469,54.36970031,89.138,89.137,0.00189868]
[1645946457670,85.31974364,89.138,89.137,0.00189868]
[1645946458070,85.0,89.137,89.029,2.43689812]
[1645946458270,16.8547,89.11,89.012,2.53501159]
[1645946458470,7.0,89.101,88.993,6.97854778]
[1645946458670,55.00206378,89.1,88.993,6.97854778]
[1645946458872,55.00206378,89.1,88.993,2.48854778]
[1645946459072,109.32861401,89.1,88.981,3.09302215]
[1645946459373,7.0,89.094,88.981,3.09302215]
[1645946459570,16.2,89.09,88.982,4.492]
[1645946459770,4.492,89.089,88.982,4.492]
[1645946460071,62.78224838,89.089,88.982,4.492]
[1645946460272,24.2608,89.088,88.982,4.492]
[1645946460492,16.8572,89.08,88.982,4.492]
[1645946460673,60.12618492,89.079,88.982,4.492]
[1645946461072,60.12618492,89.079,88.981,3.09302215]
[1645946461274,60.12618492,89.079,88.982,4.492]
[1645946462178,60.12618492,89.079,88.983,112.7]
[1645946462376,60.12618492,89.079,88.985,112.7]
[1645946462580,60.12618492,89.079,88.986,2.87445052]
[1645946462778,60.12618492,89.079,88.987,4.492]
[1645946463279,60.12618492,89.079,88.99,3.0741104]
[1645946463479,60.12618492,89.079,88.991,4.492]
[1645946464079,60.12618492,89.079,88.99,3.0741104]
[1645946465584,60.12618492,89.079,88.991,4.492]
[1645946467684,60.12618492,89.079,88.99,3.0741104]
[1645946468600,4.492,89.078,88.99,3.0741104]
[1645946468800,60.12618492,89.079,88.99,3.0741104]
[1645946468999,4.492,89.078,88.99,3.0741104]
[1645946469999,24.3123,89.077,88.99,3.0741104]
[1645946471601,24.3123,89.077,88.992,112.7]
[1645946471800,24.3123,89.077,88.994,112.7]
[1645946472002,24.3123,89.077,88.996,112.7]
[1645946472202,24.3123,89.077,88.997,2.37315195]
[1645946472409,24.3123,89.077,88.998,2.79134489]
[1645946472704,24.3123,89.077,88.991,7.08620251]
[1645946473901,24.3123,89.077,88.991,4.492]
[1645946474103,24.3123,89.077,88.993,2.96435578]
[1645946474302,24.3123,89.077,88.994,4.492]
[1645946475504,24.3123,89.077,88.993,2.96435578]
[1645946476006,60.12618492,89.079,88.993,2.96435578]
[1645946476205,60.12618492,89.079,88.994,2.74678921]
[1645946477609,60.12618492,89.079,88.995,4.492]
[1645946477811,60.12618492,89.079,89.011,112.7]
[1645946478009,60.12618492,89.079,89.014,2.39678748]
[1645946478208,60.12618492,89.079,89.015,4.492]
[1645946479508,22.9323,89.097,89.015,4.492]
[1645946479710,22.9323,89.097,89.021,115.6926866]
[1645946479910,7.0,89.124,89.023,112.7]
[1645946480110,7.0,89.124,89.025,112.7]
[1645946480313,7.0,89.124,89.031,112.7]
[1645946480512,50.34581192,89.123,89.033,112.7]
[1645946480712,50.34581192,89.123,89.034,2.5684631]
[1645946481712,50.34581192,89.123,89.035,2.74678921]
[1645946481912,50.34581192,89.123,89.036,112.7]
[1645946482115,50.34581192,89.123,89.051,112.7]
[1645946482413,50.34581192,89.123,89.054,2.965917]
[1645946485113,16.8503,89.12,89.054,2.965917]
[1645946485316,5.99896341,89.119,89.031,4.49]
[1645946485516,16.2,89.11,88.982,49.64768962]
[1645946485714,7.0,89.096,88.983,2.29772882]
[1645946485916,104.53573554,89.095,88.983,2.29772882]
[1645946486116,104.53573554,89.095,88.983,114.99772882]
[1645946486315,16.856,89.09,88.984,2.6268952]
[1645946486517,6.0701911,89.089,88.984,2.6268952]
[1645946486715,34.62348657,89.089,88.984,2.6268952]
[1645946486916,30.85946219,89.088,88.984,2.6268952]
[1645946487116,6.2236841,89.087,88.984,2.6268952]
[1645946487316,7.0,89.084,88.984,2.6268952]
[1645946487516,16.8596,89.07,88.984,2.6268952]
[1645946487717,50.6985587,89.069,88.984,2.6268952]
[1645946488918,4.493,89.068,88.984,2.6268952]
[1645946489119,55.1915587,89.069,88.984,2.6268952]
[1645946490121,50.6985587,89.069,88.984,2.6268952]
[1645946490921,50.6985587,89.069,88.985,2.74678921]
[1645946491423,50.6985587,89.069,88.984,2.6268952]
[1645946492725,4.493,89.068,88.984,2.6268952]
[1645946493324,7.0,89.064,88.984,2.6268952]
[1645946493528,4.493,89.068,88.984,2.6268952]
[1645946493926,7.0,89.061,88.984,2.6268952]
[1645946494529,4.493,89.068,88.984,2.6268952]
[1645946494730,55.1915587,89.069,88.984,2.6268952]
[1645946496128,50.6985587,89.069,88.984,2.6268952]
[1645946496828,4.493,89.068,88.984,2.6268952]
[1645946499337,67.6940587,89.069,88.984,2.6268952]
[1645946500935,50.6985587,89.069,88.984,2.6268952]
[1645946501754,50.6985587,89.069,88.985,2.74678921]
[1645946502251,50.6985587,89.069,88.986,4.493]
[1645946502652,50.6985587,89.069,88.987,2.74678921]
[1645946505958,50.6985587,89.069,88.991,112.7]
[1645946506160,23.8635,89.095,88.992,2.98980136]
[1645946506360,23.8635,89.095,88.995,2.58154268]
[1645946506559,23.8635,89.095,89.01,16.2]
[1645946506759,23.8635,89.095,89.011,25.95720881]
[1645946506965,23.8635,89.095,89.012,3.09138174]
[1645946507160,53.29839137,89.094,89.012,3.09138174]
[1645946507861,53.29839137,89.094,89.012,5.83817095]
[1645946509261,53.29839137,89.094,89.014,2.28788149]
[1645946512765,23.8635,89.095,89.014,2.28788149]
[1645946512967,23.8635,89.095,89.016,112.7]
[1645946513167,23.8635,89.095,89.03,16.2]
[1645946513368,23.8635,89.095,89.031,2.5004256]
[1645946517173,44.89528636,89.094,89.031,2.5004256]
[1645946518174,44.89528636,89.094,89.031,24.2028]
[1645946518375,44.89528636,89.094,89.032,2.46769054]
[1645946539327,44.89528636,89.094,89.015,4.491]
[1645946539528,44.89528636,89.094,89.017,2.87170644]
[1645946543733,44.89528636,89.094,89.02,16.2]
[1645946544233,44.89528636,89.094,89.021,2.6276575]
[1645946549238,23.8635,89.095,89.021,2.6276575]
[1645946549638,24.56276113,89.104,89.023,112.7]
[1645946549836,23.0194,89.116,89.024,3.07508161]
[1645946550036,23.0194,89.116,89.025,112.7]
[1645946550238,47.58216113,89.116,89.031,112.7]
[1645946550437,58.77222357,89.115,89.032,2.54804355]
[1645946550637,58.77222357,89.115,89.034,112.7]
[1645946550841,58.77222357,89.115,89.035,2.42512951]
[1645946552040,23.0194,89.116,89.036,2.74678921]
[1645946552242,23.0194,89.116,89.041,112.7]
[1645946552541,24.07848636,89.135,89.042,2.87808788]
[1645946552743,24.07848636,89.135,89.044,112.7]
[1645946552943,54.11884768,89.134,89.045,2.94266664]
[1645946553143,54.11884768,89.134,89.047,2.5896849]
[1645946553345,54.11884768,89.134,89.051,112.7]
[1645946553542,54.11884768,89.134,89.052,2.8790712]
[1645946555545,2.22431999,89.133,89.052,2.8790712]
[1645946557346,26.30280635,89.133,89.052,2.8790712]
[1645946558650,2.74678921,89.132,89.052,2.8790712]
[1645946558847,26.93096535,89.132,89.052,2.8790712]
[1645946559048,1.59791023,89.129,89.052,2.8790712]
[1645946559448,43.47835839,89.128,89.052,2.8790712]
[1645946559651,1.37521879,89.127,89.052,2.8790712]
[1645946559850,1.37521879,89.127,89.02,16.2]
[1645946559851,4.489,89.126,89.021,2.63185918]
[1645946560050,1.58670938,89.125,89.021,2.63185918]
[1645946560350,4.49,89.124,89.021,2.63185918]
[1645946560554,5.86044686,89.124,89.021,112.7]
[1645946560755,19.0281081,89.124,89.022,2.59693041]
[1645946560957,2.22431999,89.123,89.022,2.59693041]
[1645946561556,16.8503,89.12,89.022,2.59693041]
[1645946561969,2.74678921,89.119,89.022,2.59693041]
[1645946562570,7.0,89.124,89.024,112.7]
[1645946562770,23.0974,89.126,89.025,4.49]